fUST/lending_fUST_20240604
["ID","MTS","AMOUNT","RATE_DAILY","PERIOD"]
[328525663,1717488650719,-188.70294307,0.00022465,2]
[328525664,1717488650728,-500.0,0.00022465,2]
[328525665,1717488650737,-500.0,0.00022465,2]
[328525666,1717488650746,-2477.27,0.00022637,2]
[328525667,1717488650756,-823.39857957,0.00022677,2]
[328525668,1717488650765,-151.0,0.00022711,5]
[328525669,1717488650774,-551.07,0.00022736,2]
[328525670,1717488650784,-10478.48667122,0.00022737,2]
[328525671,1717488650794,-1951.09576824,0.00022737,2]
[328525672,1717488650803,-1702.96524585,0.00022737,2]
[328525673,1717488650812,-551.07,0.00022738,2]
[328525674,1717488650822,-2477.27,0.00022738,2]
[328525675,1717488650831,-500.0,0.00022739,2]
[328525676,1717488650841,-500.0,0.00022739,2]
[328525677,1717488650850,-530.99673159,0.00022739,2]
[328525678,1717488650859,-452.94475323,0.00022739,2]
[328525679,1717488650867,-500.0,0.00022739,2]
[328525680,1717488650876,-500.0,0.00022739,2]
[328525681,1717488650886,-500.0,0.00022739,2]
[328525682,1717488650895,-500.0,0.00022739,2]
[328525683,1717488650904,-500.0,0.00022739,2]
[328525684,1717488650913,-500.0,0.00022739,2]
[328525685,1717488650922,-500.0,0.00022739,2]
[328525686,1717488650932,-500.0,0.00022739,2]
[328525687,1717488650941,-607.84,0.00022739,2]
[328525688,1717488650950,-500.0,0.00022739,2]
[328525689,1717488650959,-500.0,0.00022739,2]
[328525690,1717488650968,-545.49,0.00022739,2]
[328525691,1717488650977,-500.0,0.00022739,2]
[328525692,1717488650986,-500.0,0.00022739,2]
[328525693,1717488650995,-500.0,0.00022739,2]
[328525694,1717488651004,-509.33,0.00022739,2]
[328525695,1717488651013,-346.51960472,0.00022739,2]
[328525696,1717488651022,-386.27436127,0.00022739,2]
[328525697,1717488651031,-500.0,0.00022739,2]
[328525698,1717488651040,-500.0,0.00022739,2]
[328525699,1717488651049,-366.06751347,0.00022739,2]
[328525700,1717488651058,-500.0,0.00022739,2]
[328525701,1717488651067,-500.0,0.00022739,2]
[328525702,1717488651076,-500.0,0.00022739,2]
[328525703,1717488651085,-500.0,0.00022739,2]
[328525704,1717488651094,-569.54580748,0.00022739,2]
[328525705,1717488651103,-500.0,0.00022739,2]
[328525706,1717488651112,-664.2,0.00022739,2]
[328525707,1717488651121,-500.0,0.00022739,2]
[328525708,1717488651131,-522.928251,0.00022739,2]
[328525709,1717488651139,-500.0,0.00022739,2]
[328525710,1717488651148,-500.0,0.00022739,2]
[328525711,1717488651158,-500.0,0.00022739,2]
[328525712,1717488651169,-549.85,0.00022739,2]
[328525713,1717488651178,-500.0,0.00022739,2]
[328525714,1717488651187,-542.91,0.00022739,2]
[328525715,1717488651196,-623.74,0.00022739,2]
[328525716,1717488651205,-380.02456775,0.00022739,2]
[328525717,1717488651214,-500.0,0.00022739,2]
[328525718,1717488651224,-1753.62,0.00022739,2]
[328525719,1717488651233,-1075.03,0.00022739,2]
[328525720,1717488651242,-500.0,0.00022739,2]
[328525721,1717488651251,-500.0,0.00022739,2]
[328525722,1717488651260,-500.0,0.00022739,2]
[328525723,1717488651270,-1869.23,0.00022739,2]
[328525724,1717488651279,-500.0,0.00022739,2]
[328525725,1717488651288,-500.0,0.00022739,2]
[328525726,1717488651297,-644.92,0.00022739,2]
[328525727,1717488651306,-504.31041955,0.00022739,2]
[328525728,1717488651315,-500.0,0.00022739,2]
[328525729,1717488651324,-1025.37,0.00022739,2]
[328525730,1717488651334,-500.0,0.00022739,2]
[328525731,1717488651343,-500.0,0.00022739,2]
[328525732,1717488651352,-906.87,0.00022739,2]
[328525733,1717488651361,-500.0,0.00022739,2]
[328525734,1717488651370,-334.57543987,0.00022739,2]
[328525735,1717488651380,-500.0,0.00022739,2]
[328525736,1717488651389,-1598.96,0.00022739,2]
[328525737,1717488651398,-500.0,0.00022739,2]
[328525738,1717488651407,-500.0,0.00022739,2]
[328525739,1717488651417,-500.0,0.00022739,2]
[328525740,1717488651426,-500.0,0.00022739,2]
[328525741,1717488651435,-500.0,0.00022739,2]
[328525742,1717488651445,-511.5,0.00022739,2]
[328525743,1717488651459,-738.59,0.00022739,2]
[328525744,1717488651468,-500.0,0.00022739,2]
[328525745,1717488651478,-3148.62,0.00022739,2]
[328525746,1717488651487,-500.0,0.00022739,2]
[328525747,1717488651497,-500.0,0.00022739,2]
[328525748,1717488651506,-500.0,0.00022739,2]
[328525749,1717488651515,-323.67307564,0.00022828,2]
[328525750,1717488651524,-1000.0,0.00023,5]
[328525751,1717488651536,-545.9840125,0.00023,2]
[328525752,1717488651546,-551.07,0.00023012,2]
[328525753,1717488651556,-2477.27,0.00023012,2]
[328525754,1717488651565,-500.0,0.00023013,2]
[328525755,1717488651575,-591.64944206,0.00023013,2]
[328525756,1717488651584,-500.0,0.00023013,2]
[328525757,1717488651593,-500.0,0.00023013,2]
[328525758,1717488651603,-500.0,0.00023013,2]
[328525759,1717488651614,-500.0,0.00023013,2]
[328525760,1717488651623,-500.0,0.00023013,2]
[328525761,1717488651632,-500.0,0.00023013,2]
[328525762,1717488651641,-282.97822319,0.00023013,2]
[328525763,1717488651650,-500.0,0.00023013,2]
[328525764,1717488651660,-607.84,0.00023013,2]
[328525765,1717488651670,-500.0,0.00023013,2]
[328525766,1717488651679,-500.0,0.00023013,2]
[328525767,1717488651688,-545.49,0.00023013,2]
[328525768,1717488651698,-179.01098162,0.00023013,2]
[328525769,1717488651709,-500.0,0.00023013,2]
[328525770,1717488651718,-500.0,0.00023013,2]
[328525771,1717488651727,-509.33,0.00023013,2]
[328525772,1717488651736,-500.0,0.00023013,2]
[328525773,1717488651746,-500.0,0.00023013,2]
[328525774,1717488651756,-500.0,0.00023013,2]
[328525775,1717488651765,-500.0,0.00023013,2]
[328525776,1717488651774,-500.0,0.00023013,2]
[328525777,1717488651784,-500.0,0.00023013,2]
[328525778,1717488651794,-500.0,0.00023013,2]
[328525779,1717488651803,-664.2,0.00023013,2]
[328525780,1717488651812,-500.0,0.00023013,2]
[328525781,1717488651822,-500.0,0.00023013,2]
[328525782,1717488651832,-605.98735624,0.00023013,2]
[328525783,1717488651842,-500.0,0.00023013,2]
[328525784,1717488651852,-549.85,0.00023013,2]
[328525785,1717488651861,-500.0,0.00023013,2]
[328525786,1717488651871,-542.91,0.00023013,2]
[328525787,1717488651880,-623.74,0.00023013,2]
[328525788,1717488651889,-528.52,0.00023013,2]
[328525789,1717488651984,-1753.62,0.00023013,2]
[328525790,1717488651995,-1075.03,0.00023013,2]
[328525791,1717488652004,-330.05629941,0.00023013,2]
[328525792,1717488652013,-500.0,0.00023013,2]
[328525793,1717488652023,-500.0,0.00023013,2]
[328525794,1717488652032,-1869.23,0.00023013,2]
[328525795,1717488652041,-153.4441925,0.00023013,2]
[328525796,1717488652050,-500.0,0.00023013,2]
[328525797,1717488652059,-644.92,0.00023013,2]
[328525798,1717488652068,-500.0,0.00023013,2]
[328525799,1717488652077,-14.90806884,0.00023013,2]
[328525800,1717488652186,-898.9915,0.00023013,2]
[328525801,1717488716950,4002.29292445,9.999e-05,2]
[328525802,1717488716974,154.9690062,9.999e-05,2]
[328525803,1717488716996,796.78092261,9.999e-05,2]
[328525804,1717488754686,273.37336231,9.9e-05,2]
[328525805,1717488764603,400.0,9.999e-05,2]
[328525806,1717488771356,273.37336231,9.9e-05,2]
[328525807,1717488828369,208.20443176,9.999e-05,2]
[328525808,1717488969246,285.64268325,9.999e-05,2]
[328525809,1717489133400,199.73523408,9.999e-05,2]
[328525814,1717489715626,1385.31745352,9.999e-05,2]
[328525822,1717489767088,-685.80898577,0.00018894,2]
[328525823,1717489767110,-473.69451423,0.00018895,2]
[328525833,1717489834186,-177.9523258,0.000189,2]
[328525834,1717489834197,-161.5476908,0.00019297,2]
[328525853,1717489839467,-619.69894878,0.00019297,2]
[328525854,1717489839479,-599.99999993,0.00019297,2]
[328525855,1717489839493,-500.0,0.00019297,2]
[328525873,1717489842274,-759.17800019,0.00019297,2]
[328525874,1717489842284,-9673.68566745,0.00019298,2]
[328525911,1717489844549,-7366.52590727,0.00019298,2]
[328525914,1717489844561,-302.14849804,0.00019298,2]
[328525940,1717489846761,-422.22153081,0.00019298,2]
[328525941,1717489847099,-830.6395,0.00019298,2]
[328525942,1717489847112,-483.68080341,0.00019298,2]
[328525968,1717490004689,1904.43006571,9.999e-05,2]
[328525985,1717490776049,685.80898577,9.999e-05,2]
[328525986,1717490796131,-744.94679102,0.00018887,2]
[328525987,1717490882766,154.9690062,9.9e-05,2]
[328525988,1717490953084,-2065.51037717,0.00018887,2]
[328525989,1717490953104,-154.95351395,0.00018887,2]
[328525990,1717490953123,-721.75039328,0.00018888,2]
[328525991,1717490953143,-168.63488387,0.000189,2]
[328525992,1717490953164,-141.36052924,0.00019036,2]
[328525993,1717490968150,155.42138466,0.00015,2]
[328526045,1717491038086,-685.80898577,0.00018931,2]
[328526046,1717491038097,-90.15267673,0.00018932,2]
[328526148,1717491041273,-343.44284275,0.00018932,2]
[328526252,1717491044034,-3801.11789746,0.00018932,2]
[328526253,1717491044044,-14208.45831186,0.00019036,2]
[328526254,1717491044054,-151.0,0.00019262,3]
[328526255,1717491044063,-171.527899,0.0001939,2]
[328526256,1717491044072,-151.0,0.00019743,3]
[328526257,1717491044082,-1000.0,0.0002,2]
[328526258,1717491044092,-1353.96157468,0.0002,2]
[328526259,1717491044101,-151.0,0.00020223,3]
[328526260,1717491044111,-151.0,0.00020704,3]
[328526261,1717491044120,-250.2,0.00020869,3]
[328526262,1717491044129,-1000.0,0.00021,2]
[328526263,1717491044138,-151.0,0.00021184,5]
[328526264,1717491044147,-250.2,0.00021403,5]
[328526265,1717491044156,-4183.61878309,0.00021585,2]
[328526266,1717491044166,-151.0,0.00021664,5]
[328526267,1717491044175,-178.84682982,0.00021817,2]
[328526268,1717491044184,-498.0,0.00021875,2]
[328526269,1717491044193,-150.0,0.00021875,2]
[328526270,1717491044202,-178.84682981,0.00021886,2]
[328526271,1717491044211,-603.98,0.00021907,3]
[328526272,1717491044223,-24423.53974287,0.00021915,7]
[328526273,1717491044232,-154.95351395,0.00021915,2]
[328526274,1717491044242,-2474.66079371,0.00021915,2]
[328526275,1717491044251,-1595.7711844,0.00021916,2]
[328526276,1717491044260,-500.0,0.00021916,2]
[328526277,1717491044270,-347.63330513,0.00021916,2]
[328526278,1717491044279,-166.21397511,0.00021916,2]
[328526279,1717491044288,-500.0,0.00021916,2]
[328526280,1717491044298,-425.1864445,0.00021916,2]
[328526281,1717491044307,-500.0,0.00021916,2]
[328526282,1717491044317,-178.98276074,0.00021916,2]
[328526283,1717491044328,-13047.41609337,0.00021917,7]
[328526284,1717491044340,-500.0,0.00021917,2]
[328526285,1717491044349,-500.0,0.00021917,2]
[328526286,1717491044359,-500.0,0.00021917,2]
[328526287,1717491044369,-500.0,0.00021917,2]
[328526288,1717491044379,-500.0,0.00021917,2]
[328526289,1717491044388,-500.0,0.00021917,2]
[328526290,1717491044397,-500.0,0.00021917,2]
[328526291,1717491044407,-500.0,0.00021917,2]
[328526292,1717491044417,-500.0,0.00021917,2]
[328526293,1717491044427,-500.0,0.00021917,2]
[328526294,1717491044436,-500.0,0.00021917,2]
[328526295,1717491044445,-500.0,0.00021917,2]
[328526296,1717491044454,-500.0,0.00021917,2]
[328526297,1717491044463,-500.0,0.00021917,2]
[328526298,1717491044474,-223.58716434,0.00021917,2]
[328526299,1717491044483,-500.0,0.00021917,2]
[328526300,1717491044492,-500.0,0.00021917,2]
[328526301,1717491044501,-500.0,0.00021917,2]
[328526302,1717491044512,-507.37041746,0.00021917,2]
[328526303,1717491044521,-274.3990616,0.00021917,2]
[328526304,1717491044530,-500.0,0.00021917,2]
[328526305,1717491044539,-500.0,0.00021917,2]
[328526306,1717491044643,-500.0,0.00021917,2]
[328526307,1717491044674,-598.00799466,0.00021917,2]
[328526308,1717491044683,-500.0,0.00021917,2]
[328526309,1717491044692,-500.0,0.00021917,2]
[328526310,1717491044701,-500.0,0.00021917,2]
[328526311,1717491044711,-500.0,0.00021917,2]
[328526312,1717491044721,-500.0,0.00021917,2]
[328526313,1717491044731,-500.0,0.00021917,2]
[328526314,1717491044740,-500.0,0.00021917,2]
[328526315,1717491044749,-500.0,0.00021917,2]
[328526316,1717491044759,-500.0,0.00021917,2]
[328526317,1717491044769,-500.0,0.00021917,2]
[328526318,1717491044778,-500.0,0.00021917,2]
[328526319,1717491044788,-528.14796443,0.00021917,2]
[328526320,1717491044798,-500.0,0.00021917,2]
[328526321,1717491044807,-500.0,0.00021917,2]
[328526322,1717491044816,-500.0,0.00021917,2]
[328526323,1717491044826,-500.0,0.00021917,2]
[328526324,1717491044835,-500.0,0.00021917,2]
[328526325,1717491044844,-500.0,0.00021917,2]
[328526326,1717491044853,-500.0,0.00021917,2]
[328526327,1717491044863,-500.0,0.00021917,2]
[328526328,1717491044872,-500.0,0.00021917,2]
[328526329,1717491044881,-500.0,0.00021917,2]
[328526330,1717491044890,-500.0,0.00021917,2]
[328526331,1717491044899,-577.03063155,0.00021917,2]
[328526332,1717491044908,-500.0,0.00021917,2]
[328526333,1717491044917,-500.0,0.00021917,2]
[328526334,1717491044926,-500.0,0.00021917,2]
[328526335,1717491044935,-500.0,0.00021917,2]
[328526336,1717491044944,-500.0,0.00021917,2]
[328526337,1717491044953,-500.0,0.00021917,2]
[328526338,1717491044962,-500.0,0.00021917,2]
[328526339,1717491044972,-1547.46,0.00021917,2]
[328526340,1717491044981,-500.0,0.00021917,2]
[328526341,1717491044990,-500.0,0.00021917,2]
[328526342,1717491044999,-500.0,0.00021917,2]
[328526343,1717491045009,-500.0,0.00021917,2]
[328526344,1717491045018,-500.0,0.00021917,2]
[328526345,1717491045027,-517.42,0.00021917,2]
[328526346,1717491045036,-501.09620663,0.00021917,2]
[328526347,1717491045045,-500.0,0.00021917,2]
[328526348,1717491045054,-500.0,0.00021917,2]
[328526349,1717491045063,-500.0,0.00021917,2]
[328526350,1717491045071,-500.0,0.00021917,2]
[328526351,1717491045080,-500.0,0.00021917,2]
[328526352,1717491045090,-500.0,0.00021917,2]
[328526353,1717491045100,-500.0,0.00021917,2]
[328526354,1717491045109,-500.0,0.00021917,2]
[328526355,1717491045119,-500.0,0.00021917,2]
[328526356,1717491045129,-500.0,0.00021917,2]
[328526357,1717491045138,-500.0,0.00021917,2]
[328526358,1717491045147,-500.0,0.00021917,2]
[328526359,1717491045156,-500.0,0.00021917,2]
[328526360,1717491045165,-500.0,0.00021917,2]
[328526361,1717491045175,-502.04,0.00021917,2]
[328526362,1717491045184,-500.0,0.00021917,2]
[328526363,1717491045193,-500.0,0.00021917,2]
[328526364,1717491045202,-500.0,0.00021917,2]
[328526365,1717491045211,-505.52934501,0.00021917,2]
[328526366,1717491045220,-771.55,0.00021917,2]
[328526367,1717491045232,-500.0,0.00021917,2]
[328526368,1717491045241,-500.0,0.00021917,2]
[328526369,1717491045250,-500.0,0.00021917,2]
[328526370,1717491045259,-500.0,0.00021917,2]
[328526371,1717491045269,-500.0,0.00021917,2]
[328526372,1717491045278,-500.0,0.00021917,2]
[328526373,1717491045288,-500.0,0.00021917,2]
[328526374,1717491045297,-500.0,0.00021917,2]
[328526375,1717491045307,-1211.67,0.00021917,2]
[328526376,1717491045316,-1063.22,0.00021917,2]
[328526377,1717491045329,-500.0,0.00021917,2]
[328526378,1717491045339,-331.15487422,0.00021917,2]
[328526379,1717491045350,-500.0,0.00021917,2]
[328526380,1717491045360,-677.21,0.00021917,2]
[328526381,1717491045371,-500.0,0.00021917,2]
[328526382,1717491045380,-500.0,0.00021917,2]
[328526383,1717491045390,-500.0,0.00021917,2]
[328526384,1717491045399,-336.24864644,0.00021917,2]
[328526385,1717491045410,-500.0,0.00021917,2]
[328526386,1717491045420,-500.0,0.00021917,2]
[328526387,1717491045429,-500.0,0.00021917,2]
[328526388,1717491045439,-500.0,0.00021917,2]
[328526389,1717491045448,-500.0,0.00021917,2]
[328526391,1717491045459,-505.94,0.00021917,2]
[328526393,1717491045468,-500.0,0.00021917,2]
[328526395,1717491045480,-500.0,0.00021917,2]
[328526397,1717491045490,-500.0,0.00021917,2]
[328526399,1717491045500,-625.76,0.00021917,2]
[328526401,1717491045510,-500.0,0.00021917,2]
[328526403,1717491045520,-500.0,0.00021917,2]
[328526405,1717491045530,-500.0,0.00021917,2]
[328526407,1717491045540,-500.0,0.00021917,2]
[328526409,1717491045549,-500.0,0.00021917,2]
[328526411,1717491045559,-500.0,0.00021917,2]
[328526413,1717491045569,-500.0,0.00021917,2]
[328526415,1717491045579,-500.0,0.00021917,2]
[328526417,1717491045588,-500.0,0.00021917,2]
[328526419,1717491045597,-500.0,0.00021917,2]
[328526421,1717491045607,-500.0,0.00021917,2]
[328526424,1717491045618,-500.0,0.00021917,2]
[328526426,1717491045627,-500.0,0.00021917,2]
[328526428,1717491045637,-532.05321584,0.00021917,2]
[328526429,1717491045646,-589.63264807,0.00021917,2]
[328526431,1717491045655,-500.0,0.00021917,2]
[328526433,1717491045665,-500.0,0.00021917,2]
[328526435,1717491045675,-500.0,0.00021917,2]
[328526438,1717491045685,-500.0,0.00021917,2]
[328526440,1717491045694,-500.0,0.00021917,2]
[328526442,1717491045704,-500.0,0.00021917,2]
[328526444,1717491045713,-500.0,0.00021917,2]
[328526446,1717491045725,-500.0,0.00021917,2]
[328526447,1717491045735,-500.0,0.00021917,2]
[328526448,1717491045744,-500.0,0.00021917,2]
[328526449,1717491045753,-500.0,0.00021917,2]
[328526450,1717491045762,-528.05,0.00021917,2]
[328526451,1717491045772,-500.0,0.00021917,2]
[328526452,1717491045782,-500.0,0.00021917,2]
[328526453,1717491045791,-500.0,0.00021917,2]
[328526454,1717491045801,-500.0,0.00021917,2]
[328526455,1717491045810,-500.0,0.00021917,2]
[328526456,1717491045820,-500.0,0.00021917,2]
[328526457,1717491045829,-500.0,0.00021917,2]
[328526458,1717491045838,-500.0,0.00021917,2]
[328526459,1717491045848,-500.0,0.00021917,2]
[328526460,1717491045857,-880.63,0.00021917,2]
[328526461,1717491045866,-421.04153356,0.00021917,2]
[328526462,1717491045876,-500.0,0.00021917,2]
[328526463,1717491045885,-500.0,0.00021917,2]
[328526464,1717491045894,-265.85119809,0.00021917,2]
[328526465,1717491045903,-200.05640738,0.00021917,2]
[328526466,1717491045913,-1442.26,0.00021917,2]
[328526467,1717491045922,-1154.39,0.00021917,2]
[328526468,1717491045931,-500.0,0.00021917,2]
[328526469,1717491045940,-500.0,0.00021917,2]
[328526470,1717491045950,-523.02,0.00021917,2]
[328526471,1717491045960,-500.0,0.00021917,2]
[328526472,1717491045970,-500.0,0.00021917,2]
[328526473,1717491045988,-320.72451769,0.00021917,2]
[328526474,1717491045997,-500.0,0.00021917,2]
[328526476,1717491046007,-1023.21,0.00021917,2]
[328526477,1717491046016,-500.0,0.00021917,2]
[328526478,1717491046025,-500.0,0.00021917,2]
[328526479,1717491046035,-500.0,0.00021917,2]
[328526480,1717491046044,-500.0,0.00021917,2]
[328526482,1717491046053,-500.0,0.00021917,2]
[328526483,1717491046062,-500.0,0.00021917,2]
[328526484,1717491046072,-500.0,0.00021917,2]
[328526485,1717491046081,-500.0,0.00021917,2]
[328526486,1717491046089,-500.0,0.00021917,2]
[328526488,1717491046097,-500.0,0.00021917,2]
[328526489,1717491046105,-151.0,0.00021917,2]
[328526491,1717491046115,-500.0,0.00021917,2]
[328526493,1717491046126,-500.0,0.00021917,2]
[328526495,1717491046136,-500.0,0.00021917,2]
[328526497,1717491046146,-500.0,0.00021917,2]
[328526499,1717491046155,-1700.55,0.00021917,2]
[328526501,1717491046164,-500.0,0.00021917,2]
[328526503,1717491046174,-500.0,0.00021917,2]
[328526505,1717491046183,-500.0,0.00021917,2]
[328526507,1717491046193,-500.0,0.00021917,2]
[328526509,1717491046204,-500.0,0.00021917,2]
[328526511,1717491046214,-500.0,0.00021917,2]
[328526512,1717491046230,-500.0,0.00021917,2]
[328526513,1717491046240,-605.0,0.00021917,2]
[328526514,1717491046249,-503.40080648,0.00021917,2]
[328526515,1717491046259,-433.95160196,0.00021917,2]
[328526516,1717491046268,-500.0,0.00021917,2]
[328526517,1717491046277,-500.0,0.00021917,2]
[328526518,1717491046286,-500.0,0.00021917,2]
[328526519,1717491046295,-500.0,0.00021917,2]
[328526520,1717491046304,-500.0,0.00021917,2]
[328526521,1717491046313,-500.0,0.00021917,2]
[328526522,1717491046322,-529.61,0.00021917,2]
[328526523,1717491046331,-500.0,0.00021917,2]
[328526524,1717491046343,-187.42629809,0.00021917,2]
[328526525,1717491046354,-500.0,0.00021917,2]
[328526526,1717491046363,-500.0,0.00021917,2]
[328526527,1717491046373,-500.0,0.00021917,2]
[328526528,1717491046383,-382.57902097,0.00021917,2]
[328526529,1717491046392,-243.03415262,0.00021917,2]
[328526530,1717491046402,-500.0,0.00021917,2]
[328526531,1717491046412,-500.0,0.00021917,2]
[328526532,1717491046422,-500.0,0.00021917,2]
[328526533,1717491046432,-500.0,0.00021917,2]
[328526534,1717491046441,-500.0,0.00021917,2]
[328526535,1717491046452,-500.0,0.00021917,2]
[328526536,1717491046461,-949.81,0.00021917,2]
[328526537,1717491046471,-949.81,0.00021917,2]
[328526538,1717491046485,-949.81,0.00021917,2]
[328526539,1717491046495,-949.81,0.00021917,2]
[328526540,1717491046504,-3200.1,0.00021917,2]
[328526541,1717491046514,-949.81,0.00021917,2]
[328526542,1717491046524,-949.81,0.00021917,2]
[328526543,1717491046533,-1036.62,0.00021917,2]
[328526544,1717491046543,-500.0,0.00021917,2]
[328526545,1717491046553,-500.0,0.00021917,2]
[328526546,1717491046563,-500.0,0.00021917,2]
[328526547,1717491046572,-408.385951,0.00021917,2]
[328526548,1717491046672,-408.385951,0.00021917,2]
[328526549,1717491046683,-200.0,0.00021917,2]
[328526550,1717491046692,-500.0,0.00021917,2]
[328526551,1717491046701,-558.11,0.00021917,2]
[328526552,1717491046711,-408.385951,0.00021917,2]
[328526553,1717491046720,-408.385951,0.00021917,2]
[328526554,1717491046732,-500.0,0.00021917,2]
[328526555,1717491046742,-551.08,0.00021917,2]
[328526556,1717491046751,-551.08,0.00021917,2]
[328526557,1717491046761,-551.08,0.00021917,2]
[328526558,1717491046770,-551.08,0.00021917,2]
[328526559,1717491046780,-551.08,0.00021917,2]
[328526560,1717491046789,-500.0,0.00021917,2]
[328526561,1717491046799,-2081.33,0.00021917,2]
[328526562,1717491046808,-500.0,0.00021917,2]
[328526563,1717491046818,-189.939869,0.00021917,2]
[328526564,1717491046827,-189.939869,0.00021917,2]
[328526565,1717491046836,-500.0,0.00021917,2]
[328526566,1717491046845,-500.0,0.00021917,2]
[328526567,1717491046855,-151.0,0.00021917,2]
[328526568,1717491046864,-2897.19,0.00021917,2]
[328526569,1717491046873,-151.0,0.00021917,2]
[328526570,1717491046882,-189.939869,0.00021917,2]
[328526571,1717491046891,-189.939869,0.00021917,2]
[328526572,1717491046900,-545.72402708,0.00021917,2]
[328526573,1717491046910,-716.73,0.00021917,2]
[328526574,1717491046919,-500.0,0.00021917,2]
[328526575,1717491046929,-500.0,0.00021917,2]
[328526576,1717491046938,-551.83,0.00021917,2]
[328526577,1717491046948,-500.0,0.00021917,2]
[328526578,1717491046958,-500.0,0.00021917,2]
[328526579,1717491046969,-1067.09,0.00021917,2]
[328526580,1717491046981,-500.0,0.00021917,2]
[328526581,1717491046990,-151.0,0.00021917,2]
[328526582,1717491046999,-151.0,0.00021917,2]
[328526583,1717491047008,-500.0,0.00021917,2]
[328526584,1717491047018,-500.0,0.00021917,2]
[328526585,1717491047027,-500.0,0.00021917,2]
[328526586,1717491047036,-500.0,0.00021917,2]
[328526587,1717491047046,-500.0,0.00021917,2]
[328526588,1717491047055,-500.0,0.00021917,2]
[328526589,1717491047065,-500.0,0.00021917,2]
[328526590,1717491047074,-500.0,0.00021917,2]
[328526591,1717491047084,-784.48,0.00021917,2]
[328526592,1717491047093,-500.0,0.00021917,2]
[328526593,1717491047102,-2398.11,0.00021917,2]
[328526594,1717491047112,-500.0,0.00021917,2]
[328526595,1717491047121,-500.0,0.00021917,2]
[328526596,1717491047131,-500.0,0.00021917,2]
[328526597,1717491047140,-500.0,0.00021917,2]
[328526598,1717491047150,-500.0,0.00021917,2]
[328526599,1717491047159,-488.06386711,0.00021917,2]
[328526600,1717491047169,-516.63426432,0.00021917,2]
[328526601,1717491047179,-500.0,0.00021917,2]
[328526602,1717491047189,-500.0,0.00021917,2]
[328526603,1717491047199,-500.0,0.00021917,2]
[328526604,1717491047209,-500.0,0.00021917,2]
[328526605,1717491047219,-151.0,0.00021917,2]
[328526606,1717491047234,-151.0,0.00021917,2]
[328526607,1717491047243,-500.0,0.00021917,2]
[328526608,1717491047252,-500.0,0.00021917,2]
[328526609,1717491047261,-6351.48,0.00021917,2]
[328526610,1717491047270,-500.0,0.00021917,2]
[328526611,1717491047279,-500.0,0.00021917,2]
[328526612,1717491047289,-500.0,0.00021917,2]
[328526613,1717491047298,-500.0,0.00021917,2]
[328526614,1717491047308,-500.0,0.00021917,2]
[328526615,1717491047317,-500.0,0.00021917,2]
[328526616,1717491047330,-500.0,0.00021917,2]
[328526617,1717491047339,-2864.71,0.00021917,2]
[328526618,1717491047348,-548.76,0.00021917,2]
[328526619,1717491047358,-500.0,0.00021917,2]